bitfinex/quotes_BTCUSD_20251221
["timestamp","ask_amount","ask_price","bid_price","bid_amount"]
[1766311560671,0.06305583,89007.0,88995.0,0.01123658]
[1766311560908,0.06305583,89007.0,88996.0,0.01123646]
[1766311561112,0.06305583,89007.0,88994.0,0.01123671]
[1766311561517,0.06305583,89007.0,88991.0,0.66620503]
[1766311561518,0.00054911,89006.0,88991.0,0.62125709]
[1766311561699,0.06305583,89007.0,88994.0,0.01123671]
[1766311561913,0.06305583,89007.0,88987.0,1.0732]
[1766311562116,0.01249255,89006.0,88987.0,0.46318]
[1766311562323,0.06305583,89007.0,88987.0,1.0732]
[1766311562524,0.00054911,89006.0,88987.0,1.0732]
[1766311562726,0.06305583,89007.0,88987.0,1.0732]
[1766311563137,0.06294823,88992.0,88987.0,1.0732]
[1766311563352,0.06294823,88992.0,88984.0,0.01123797]
[1766311563790,0.06294823,88992.0,88982.0,0.03376106]
[1766311564029,0.06294823,88992.0,88976.0,0.01123898]
[1766311564030,0.06294823,88992.0,88976.0,0.00564]
[1766311564230,0.00564,88991.0,88976.0,0.00564]
[1766311564882,0.00618911,88991.0,88976.0,0.00564]
[1766311565099,0.00618911,88991.0,88974.0,1.0732]
[1766311565332,0.000441,88974.0,88973.0,0.03376106]
[1766311565538,0.000441,88974.0,88963.0,0.62191]
[1766311565760,0.00564,88978.0,88963.0,0.62191]
[1766311566422,0.00564,88978.0,88969.0,0.00060744]
[1766311568543,0.06294823,88970.0,88969.0,0.00060744]
[1766311568671,0.06294823,88970.0,88969.0,0.00016644]
[1766311570280,0.06294823,88970.0,88956.0,0.0004]
[1766311570490,0.06305579,88970.0,88956.0,0.0004]
[1766311570688,0.06305579,88970.0,88956.0,0.01164151]
[1766311570894,0.06305579,88970.0,88956.0,0.0004]
[1766311571114,0.06305579,88970.0,88956.0,0.01164151]
[1766311571468,0.06305579,88970.0,88956.0,0.0004]
[1766311573025,0.07429553,88970.0,88956.0,0.0004]
[1766311573451,0.09241362,88970.0,88956.0,0.0004]
[1766311573674,0.00054911,88969.0,88956.0,0.0004]
[1766311574430,0.06305579,88970.0,88956.0,0.0004]
[1766311574431,0.0045035,88968.0,88956.0,0.0004]
[1766311576320,0.0045035,88968.0,88948.0,0.00017532]
[1766311576321,0.01124075,88962.0,88948.0,0.00017532]
[1766311576515,0.06294823,88949.0,88948.0,2.532e-05]
[1766311576698,0.06818923,88949.0,88948.0,2.532e-05]
[1766311579403,0.06567898,88949.0,88948.0,2.532e-05]
[1766311580790,0.0640274,88949.0,88948.0,2.532e-05]
[1766311581035,0.00564,88949.0,88948.0,2.532e-05]
[1766311585259,0.00564,88949.0,88943.0,0.0004]
[1766311587269,0.01014435,88949.0,88943.0,0.0004]
[1766311590887,0.000399,88943.0,88940.0,0.0004]
[1766311591203,0.00564,88942.0,88940.0,0.0004]
[1766311591397,0.00494,88941.0,88940.0,0.0004]
[1766311592084,0.0050475,88941.0,88940.0,0.0004]
[1766311594503,0.0057475,88941.0,88940.0,0.0004]
[1766311600945,0.045,88955.0,88943.0,1.12035577]
[1766311601113,0.00564,88954.0,88943.0,0.00035817]
[1766311601315,0.00054911,88953.0,88943.0,1.7e-07]
[1766311601521,0.00564,88954.0,88943.0,1.7e-07]
[1766311601725,0.00054911,88953.0,88943.0,1.7e-07]
[1766311602711,0.01053849,88952.0,88943.0,1.7e-07]
[1766311602947,0.00054911,88951.0,88943.0,1.7e-07]
[1766311603124,0.00054911,88953.0,88943.0,1.7e-07]
[1766311603329,0.01053856,88952.0,88943.0,1.7e-07]
[1766311603528,0.01108767,88951.0,88943.0,1.7e-07]
[1766311603731,0.00054911,88951.0,88943.0,1.7e-07]
[1766311603946,0.00054911,88953.0,88943.0,1.7e-07]
[1766311604299,0.01054148,88952.0,88943.0,1.7e-07]
[1766311604511,0.01109059,88951.0,88943.0,1.7e-07]
[1766311604711,0.01054148,88950.0,88943.0,1.7e-07]
[1766311605060,0.00618911,88954.0,88943.0,1.7e-07]
[1766311605272,0.01054545,88953.0,88943.0,1.7e-07]
[1766311605469,0.01054545,88952.0,88943.0,1.7e-07]
[1766311605659,0.01054545,88951.0,88943.0,1.7e-07]
[1766311605874,0.01054545,88950.0,88943.0,1.7e-07]
[1766311606058,0.01054545,88949.0,88943.0,1.7e-07]
[1766311606336,0.00564,88948.0,88943.0,1.7e-07]
[1766311606480,0.005282,88948.0,88943.0,1.7e-07]
[1766311608949,0.00054911,88947.0,88943.0,1.7e-07]
[1766311609148,0.00054911,88947.0,88940.0,0.0004]
[1766311609347,0.06294823,88941.0,88938.0,0.0004]
[1766311609648,0.00564,88940.0,88938.0,0.000251]
[1766311612381,0.00564,88940.0,88935.0,3.71500729]
[1766311612382,0.00054911,88939.0,88935.0,3.71335964]
[1766311612789,0.00054911,88939.0,88935.0,3.71280964]
[1766311614301,0.00564,88940.0,88935.0,3.71280964]
[1766311614685,0.00054911,88939.0,88935.0,3.71280964]
[1766311616101,0.00564,88940.0,88935.0,3.4632888]
[1766311616328,0.01124366,88939.0,88935.0,2.7955788]
[1766311616669,0.00564,88940.0,88935.0,2.44499727]
[1766311616868,0.045,88938.0,88935.0,2.19547643]
[1766311616998,0.01054829,88937.0,88935.0,2.02685902]
[1766311617187,0.01054829,88937.0,88935.0,1.99308066]
[1766311617384,0.01054829,88937.0,88935.0,1.9593023]
[1766311617807,0.01054829,88937.0,88935.0,1.92552065]
[1766311618324,0.01708792,88936.0,88935.0,0.26591947]
[1766311618566,0.01054829,88936.0,88935.0,0.13548093]
[1766311618791,0.04434168,88936.0,88935.0,0.05129767]
[1766311618992,0.04434168,88936.0,88926.0,0.0004]
[1766311618993,0.02779275,88912.0,88907.0,1.06414]
[1766311619197,0.02779275,88912.0,88906.0,0.01124783]
[1766311619198,3.75e-06,88912.0,88906.0,0.01124783]
[1766311619427,3.75e-06,88912.0,88909.0,1.07538745]
[1766311619558,3.75e-06,88912.0,88910.0,0.05623664]
[1766311620296,0.00035893,88912.0,88910.0,0.05623664]
[1766311620656,0.06294823,88926.0,88919.0,0.01124619]
[1766311620857,0.06294823,88926.0,88919.0,0.01135369]
[1766311621082,0.06294823,88926.0,88920.0,0.01124606]
[1766311621519,0.06294823,88926.0,88921.0,0.01124593]
[1766311621731,0.06294823,88926.0,88923.0,0.01124568]
[1766311622359,0.02426643,88940.0,88928.0,0.01124505]
[1766311622505,0.02426643,88940.0,88923.0,0.0247405]
[1766311622506,0.00564,88949.0,88936.0,0.01124404]
[1766311622873,0.06294823,88940.0,88936.0,0.01498998]
[1766311622996,0.06294823,88940.0,88936.0,0.01124404]
[1766311623189,0.06294823,88940.0,88935.0,0.59439416]
[1766311623190,0.06294823,88940.0,88935.0,0.58315]
[1766311624599,0.06294823,88940.0,88937.0,0.01124391]
[1766311625115,0.06294823,88940.0,88935.0,0.59439416]
[1766311625116,0.06294823,88940.0,88938.0,0.00564]
[1766311626995,0.02135,88952.0,88938.0,0.00564]
[1766311626996,0.02135,88952.0,88939.0,0.61004]
[1766311627186,0.06294823,88940.0,88938.0,0.00564]
[1766311635208,0.06294823,88940.0,88938.0,0.004541]
[1766311635436,0.06294823,88940.0,88934.0,0.01124429]
[1766311635677,0.06294823,88940.0,88935.0,0.00564]
[1766311635826,0.06294823,88940.0,88935.0,0.01688416]
[1766311636233,0.06294823,88940.0,88935.0,0.00564]
[1766311637683,0.06294823,88940.0,88936.0,0.00564]
[1766311640184,0.06294823,88940.0,88930.0,0.47104]
[1766311640384,0.06294823,88940.0,88931.0,0.00564]
[1766311641039,0.01007,88939.0,88932.0,0.00564]
[1766311644581,0.0002,88946.0,88939.0,0.000549]
[1766311644781,0.0002,88946.0,88940.0,0.00564]
[1766311644991,0.06294823,88941.0,88940.0,0.00564]
[1766311645393,0.06239823,88941.0,88940.0,0.00564]
[1766311653198,0.06239823,88941.0,88934.0,0.49793]
[1766311653405,0.12524,88940.0,88931.0,0.01124467]
[1766311653603,0.12524,88940.0,88926.0,0.0002]
[1766311653811,0.12524,88940.0,88911.0,0.06029628]
[1766311653812,0.06239823,88941.0,88920.0,0.01124606]
[1766311653813,0.06294823,88927.0,88920.0,0.01124606]
[1766311654011,0.06294823,88927.0,88921.0,0.00564]
[1766311654688,0.1194,88926.0,88916.0,0.01124656]
[1766311654901,0.11950762,88926.0,88918.0,0.01124631]
[1766311655110,0.11950762,88926.0,88919.0,0.01124619]
[1766311655525,0.11950762,88926.0,88918.0,0.01124631]
[1766311655752,0.11950762,88926.0,88920.0,0.00564]
[1766311657203,0.1194,88924.0,88913.0,0.47444]
[1766311657420,0.1194,88924.0,88908.0,0.59553]
[1766311657421,0.1194,88924.0,88908.0,0.60677758]
[1766311657628,0.00010762,88926.0,88910.0,0.01124732]
[1766311657629,0.11376,88922.0,88910.0,0.01124732]
[1766311657849,0.06294823,88911.0,88909.0,0.01688745]
[1766311658071,0.06184923,88911.0,88909.0,0.01688745]
[1766311660020,0.1756,88925.0,88911.0,0.0112472]
[1766311660210,0.06294823,88912.0,88911.0,0.0112472]
[1766311660414,0.06294823,88912.0,88909.0,0.01688745]
[1766311660778,0.06294823,88912.0,88909.0,0.07312429]
[1766311661514,0.06294823,88912.0,88909.0,0.01688745]
[1766311661676,0.06294823,88912.0,88909.0,0.00564]
[1766311662094,0.06294823,88912.0,88908.0,0.59553]
[1766311662300,0.000549,88908.0,88904.0,0.47444]
[1766311662544,0.06294823,88912.0,88905.0,0.01688796]
[1766311662691,0.06294823,88912.0,88905.0,0.00564]
[1766311663524,0.30149823,88912.0,88905.0,0.01688796]
[1766311663724,0.30149823,88912.0,88906.0,0.01124783]
[1766311663932,0.30149823,88912.0,88911.0,0.00036652]
[1766311664144,0.30149823,88912.0,88911.0,5.2e-07]
[1766311668713,0.06294823,88912.0,88911.0,5.2e-07]
[1766311669712,0.06258223,88912.0,88911.0,5.2e-07]
[1766311669914,2.23e-06,88912.0,88911.0,5.2e-07]
[1766311670123,0.00564,88932.0,88918.0,0.47444]
[1766311670458,0.00564,88935.0,88928.0,0.59553]
[1766311670783,0.06239823,88941.0,88930.0,1.06997]
[1766311670995,0.09618656,88941.0,88930.0,1.06997]
[1766311671787,0.09618656,88941.0,88930.0,0.47444]
[1766311672193,0.06239823,88941.0,88930.0,0.47444]
[1766311672808,0.43710823,88941.0,88930.0,0.47444]
[1766311677556,0.43710823,88941.0,88931.0,0.59553]
[1766311677731,0.43710823,88941.0,88931.0,0.60677467]
[1766311679113,0.06239823,88941.0,88932.0,1.08685454]
[1766311679334,0.06239823,88941.0,88933.0,0.59553]
[1766311679567,0.06239823,88941.0,88935.0,0.59553]
[1766311679768,0.06239823,88941.0,88936.0,0.56592045]
[1766311680795,0.06294823,88940.0,88938.0,0.01124378]
[1766311681201,0.0002,88946.0,88939.0,0.01124366]
[1766311681400,0.06294823,88940.0,88937.0,0.01124391]
[1766311682746,0.0002,88946.0,88938.0,0.01124378]
[1766311682915,0.06294823,88942.0,88938.0,0.01124378]
[1766311683119,0.06294823,88942.0,88936.0,0.01124404]
[1766311683400,0.50060823,88942.0,88938.0,0.00564]
[1766311683598,0.50060823,88942.0,88934.0,0.05622143]
[1766311683599,0.50060823,88942.0,88931.0,0.00564]
[1766311684760,0.50060823,88942.0,88932.0,0.01124454]
[1766311684983,0.50060823,88942.0,88931.0,0.01688467]
[1766311686291,0.50060823,88942.0,88932.0,0.01124454]
[1766311686541,0.50060823,88942.0,88931.0,0.01688467]
[1766311686720,0.50060823,88942.0,88932.0,0.01124454]
[1766311687311,0.50060823,88942.0,88933.0,0.01124441]
[1766311687739,0.50060823,88942.0,88932.0,0.01124454]
[1766311688374,0.29141,88940.0,88933.0,0.00564]
[1766311688576,0.29141,88939.0,88933.0,1e-06]
[1766311688873,0.28632,88938.0,88933.0,1e-06]
[1766311689940,0.28632,88938.0,88932.0,0.01124454]
[1766311689941,0.15138,88936.0,88927.0,0.06747077]
[1766311690157,0.15148766,88936.0,88927.0,0.07311077]
[1766311690359,0.00010766,88936.0,88932.0,0.56849]
[1766311690574,0.06294823,88941.0,88935.0,0.56849]
[1766311690753,0.0001,88945.0,88936.0,0.01124404]
[1766311690952,0.0001,88945.0,88938.0,0.56849]
[1766311691313,0.0001,88945.0,88938.0,0.57413]
[1766311691675,0.0001,88945.0,88938.0,0.00564]
[1766311692681,0.01128,88947.0,88938.0,0.00564]
[1766311696062,0.06294823,88942.0,88938.0,0.00564]
[1766311696285,0.06294823,88942.0,88938.0,0.005432]
[1766311699083,0.06294823,88942.0,88937.0,0.00564]
[1766311699292,0.14406,88941.0,88925.0,0.01124543]
[1766311699492,0.01029601,88940.0,88926.0,0.00564]
[1766311699921,0.20869,88935.0,88926.0,0.00564]
[1766311700116,0.20869,88934.0,88926.0,0.00564]
[1766311700464,0.06294823,88927.0,88926.0,0.00564]
[1766311700667,0.06239923,88927.0,88926.0,0.00564]
[1766311701558,0.06239923,88927.0,88925.0,0.00010766]
[1766311702103,0.00564,88936.0,88927.0,1.04636]
[1766311702410,0.00564,88937.0,88927.0,0.48911517]
[1766311702625,0.00564,88937.0,88928.0,0.57973505]
[1766311702879,0.02429434,88940.0,88929.0,0.00564]
[1766311703092,0.06294823,88942.0,88929.0,0.00564]
[1766311703093,0.00564,88941.0,88937.0,0.00055]
[1766311703262,0.00564,88941.0,88936.0,0.01124404]
[1766311703263,0.06294823,88942.0,88936.0,0.01124404]
[1766311704045,0.06294823,88942.0,88935.0,0.57973416]
[1766311704241,0.06239823,88942.0,88937.0,0.01124391]
[1766311704438,0.06239823,88942.0,88938.0,1.06983254]
[1766311704638,0.06239823,88942.0,88938.0,1.05634]
[1766311704875,0.06239823,88942.0,88938.0,1.06758378]
[1766311705373,0.06239823,88942.0,88939.0,0.01124366]
[1766311705576,0.06239823,88942.0,88938.0,0.47787]
[1766311705778,0.06239823,88942.0,88936.0,0.00564]
[1766311706136,0.000549,88936.0,88931.0,0.01124467]
[1766311706341,0.20869,88939.0,88932.0,0.00564]
[1766311707483,0.20869,88939.0,88932.0,0.005091]
[1766311709553,0.06239823,88942.0,88939.0,0.000549]
[1766311709751,0.01055329,88941.0,88939.0,0.000549]
[1766311709999,0.01055329,88940.0,88939.0,0.000549]
[1766311710388,0.01055329,88940.0,88934.0,0.01124429]
[1766311710596,0.06239823,88942.0,88933.0,0.58971441]
[1766311710760,0.01055335,88941.0,88935.0,0.01124416]
[1766311710957,0.01055335,88941.0,88931.0,0.05622299]
[1766311710958,0.06294823,88936.0,88918.0,0.22492544]
[1766311711162,0.00055,88935.0,88930.0,0.01124479]
[1766311711400,0.00055,88935.0,88932.0,0.01124454]
[1766311711558,0.06294823,88938.0,88931.0,0.01124467]
[1766311712020,0.06294823,88938.0,88933.0,0.01124441]
[1766311712591,0.06294823,88938.0,88932.0,0.01124454]
[1766311713197,0.06294823,88938.0,88912.0,0.01124467]
[1766311713198,0.06294823,88938.0,88926.0,0.0168853]
[1766311713455,0.19583,88937.0,88927.0,0.06747101]
[1766311713665,0.19583,88937.0,88929.0,0.05622419]
[1766311713879,0.06294823,88938.0,88937.0,0.000549]
[1766311714013,0.02431497,88943.0,88933.0,0.01124441]
[1766311714216,0.06294823,88939.0,88933.0,0.01124441]
[1766311714824,0.02431497,88943.0,88939.0,0.000549]
[1766311715023,0.03962471,88946.0,88939.0,0.000549]
[1766311715024,0.01055335,88942.0,88939.0,0.000549]
[1766311715267,0.01055335,88941.0,88937.0,0.60129]
[1766311715475,0.0002,88946.0,88937.0,0.60129]
[1766311715677,0.01055333,88945.0,88937.0,0.60129]
[1766311715895,0.01055333,88944.0,88937.0,0.60129]
[1766311716088,0.01055333,88943.0,88937.0,0.60129]
[1766311716422,0.0002,88946.0,88937.0,0.60129]
[1766311716423,0.01055333,88942.0,88937.0,0.60129]
[1766311716557,0.01055333,88945.0,88937.0,0.60129]
[1766311716761,0.01055333,88944.0,88937.0,0.60129]
[1766311716977,0.01055333,88943.0,88937.0,0.60129]
[1766311717177,0.01055333,88942.0,88937.0,0.60129]
[1766311717378,0.01055333,88941.0,88937.0,0.60129]
[1766311717586,0.0002,88946.0,88939.0,0.01124366]
[1766311717790,0.01055313,88945.0,88938.0,0.01124378]
[1766311717993,0.06294823,88942.0,88937.0,0.61253391]
[1766311718254,0.06294823,88942.0,88937.0,0.01124391]
[1766311718434,0.06294823,88942.0,88937.0,0.01688391]
[1766311719221,0.06294823,88942.0,88937.0,0.00564]
[1766311719425,0.06239923,88942.0,88938.0,0.01124378]
[1766311719628,0.06239923,88942.0,88937.0,0.01688391]
[1766311719833,0.06239923,88942.0,88938.0,0.01124378]
[1766311721065,0.06239923,88942.0,88939.0,0.01124366]
[1766311721318,0.0002,88946.0,88939.0,0.01124366]
[1766311721564,0.06294823,88942.0,88939.0,0.61253366]
[1766311723422,0.0002,88946.0,88940.0,0.01124353]
[1766311723564,0.01055186,88945.0,88940.0,0.01124353]
[1766311723765,0.01055186,88944.0,88940.0,0.01124353]
[1766311723961,0.0002,88946.0,88940.0,0.01124353]
[1766311724190,0.02431497,88951.0,88940.0,0.01124353]
[1766311724191,0.02007766,88951.0,88944.0,0.60129]
[1766311724393,0.06294823,88955.0,88944.0,0.60129]
[1766311724606,0.26932823,88955.0,88944.0,0.60129]
[1766311724786,0.26932823,88955.0,88943.0,0.46661]
[1766311726263,0.20638,88955.0,88943.0,0.46661]
[1766311726436,0.20638,88955.0,88945.0,0.0112429]
[1766311726954,0.00564,88956.0,88946.0,0.01124277]
[1766311727337,0.00564,88956.0,88944.0,0.01124302]
[1766311727338,0.2401603,88962.0,88954.0,0.01124176]
[1766311727339,0.03018781,88962.0,88954.0,0.01124176]
[1766311727540,0.00564,88968.0,88959.0,0.01124113]
[1766311727744,0.00564,88968.0,88957.0,0.61253138]
[1766311727953,0.00564,88968.0,88957.0,0.60129]
[1766311728578,0.00574092,88968.0,88957.0,0.60129]
[1766311729585,0.000549,88957.0,88955.0,0.00564]
[1766311729757,0.000549,88957.0,88955.0,1.07354]
[1766311730216,0.21212092,88968.0,88955.0,1.07299]
[1766311730458,0.20638,88964.0,88955.0,0.00509]
[1766311730675,0.01029601,88963.0,88955.0,0.00509]
[1766311731117,0.01029601,88963.0,88945.0,0.0112429]
[1766311731118,0.0051,88957.0,88939.0,0.01124366]
[1766311731291,0.20638,88954.0,88941.0,0.0112434]
[1766311731511,0.20321,88954.0,88940.0,0.01688353]
[1766311732080,0.20321,88954.0,88941.0,0.0112434]
[1766311733514,0.20321,88954.0,88944.0,0.0001]
[1766311736599,0.20321,88954.0,88944.0,0.01134302]
[1766311737049,0.20321,88954.0,88945.0,0.0112429]
[1766311737420,0.00564,88957.0,88947.0,0.61253265]
[1766311737626,0.00564,88957.0,88947.0,0.47225]
[1766311741211,0.20831,88957.0,88947.0,0.47225]
[1766311742998,0.20831,88957.0,88947.0,0.00564]
[1766311744345,0.20267,88957.0,88947.0,0.00564]
[1766311745203,0.00564,88961.0,88949.0,0.47381]
[1766311745413,0.20831,88961.0,88949.0,0.47381]
[1766311750406,0.000549,88949.0,88947.0,0.00564]
[1766311750891,0.20267,88956.0,88947.0,0.00564]
[1766311751983,0.00564,88961.0,88951.0,0.47381]
[1766311752199,0.0002,88964.0,88955.0,0.47381]
[1766311752427,0.01053816,88963.0,88957.0,0.60479]
[1766311752613,0.0002,88964.0,88957.0,0.60479]
[1766311753159,0.01054039,88963.0,88957.0,0.60479]
[1766311753529,0.0002,88964.0,88957.0,0.60479]
[1766311754500,0.0002,88964.0,88956.0,0.47381]
[1766311755638,0.0002,88964.0,88956.0,1.0786]
[1766311756244,0.01054666,88963.0,88956.0,1.0786]
[1766311756449,0.0002,88964.0,88956.0,1.0786]
[1766311756798,0.01054655,88963.0,88956.0,1.0786]
[1766311757006,0.0002,88964.0,88956.0,1.0786]
[1766311757192,0.01054655,88963.0,88956.0,1.0786]
[1766311757383,0.0002,88964.0,88956.0,1.0786]
[1766311757714,0.01054903,88963.0,88956.0,1.0786]
[1766311757825,0.0002,88964.0,88956.0,1.0786]
[1766311758024,0.01054903,88963.0,88956.0,1.0786]
[1766311758235,0.0002,88964.0,88956.0,1.0786]
[1766311758442,0.01054915,88963.0,88956.0,1.0786]
[1766311758656,0.0002,88964.0,88956.0,1.0786]
[1766311758881,0.01054915,88963.0,88956.0,1.0786]
[1766311759087,0.0002,88964.0,88956.0,1.0786]
[1766311759295,0.01054946,88963.0,88956.0,1.08984151]
[1766311759499,0.0002,88964.0,88956.0,1.0786]
[1766311759716,0.01054926,88963.0,88956.0,1.0786]
[1766311759925,0.0002,88964.0,88956.0,1.0786]
[1766311760128,0.01054926,88963.0,88956.0,1.0786]
[1766311760336,0.01054926,88962.0,88956.0,1.0786]
[1766311760663,0.0002,88964.0,88956.0,1.0786]
[1766311760859,0.01054932,88963.0,88956.0,1.0786]
[1766311761063,0.0002,88964.0,88956.0,1.0786]
[1766311761268,0.01054923,88963.0,88956.0,1.0786]
[1766311761446,0.0002,88964.0,88956.0,1.0786]
[1766311761650,0.01054906,88963.0,88956.0,1.0786]
[1766311761850,0.0002,88964.0,88956.0,1.08984151]
[1766311762077,0.01054906,88963.0,88956.0,1.0786]
[1766311762256,0.0002,88964.0,88956.0,1.0786]
[1766311762459,0.0105489,88963.0,88956.0,1.0786]
[1766311762669,0.0002,88964.0,88956.0,1.0786]
[1766311762869,0.0105489,88963.0,88956.0,1.0786]
[1766311763067,0.0002,88964.0,88956.0,1.08984151]
[1766311763270,0.01054887,88963.0,88956.0,1.08984151]
[1766311763488,0.0003,88964.0,88956.0,1.08984151]
[1766311763705,0.01054878,88963.0,88957.0,0.01124138]
[1766311763897,0.0003,88964.0,88957.0,0.01124138]
[1766311764128,0.00199998,89000.0,88955.0,0.01688163]
[1766311764129,0.03377573,88972.0,88966.0,0.47381]
[1766311764336,0.04040183,88979.0,88971.0,0.47381]
[1766311764337,0.03018781,88979.0,88971.0,0.47381]
[1766311764558,0.04040183,88984.0,88971.0,0.47381]
[1766311764559,0.03018781,88985.0,88976.0,0.57688]
[1766311764769,0.03018781,88986.0,88978.0,0.57688]
[1766311765026,0.03018781,88988.0,88978.0,0.57688]
[1766311765440,0.23698,88989.0,88978.0,0.57688]
[1766311766096,0.23698,88989.0,88977.0,0.50148]
[1766311766311,0.23698,88989.0,88978.0,0.01123873]
[1766311766535,0.23698,88989.0,88977.0,0.51271885]
[1766311767393,0.23698,88989.0,88978.0,0.01123873]
[1766311768047,0.23698,88989.0,88977.0,0.51271885]
[1766311768253,0.23698,88989.0,88977.0,1.07836]
[1766311768462,0.23134,88987.0,88977.0,0.00564]
[1766311768662,0.23144,88985.0,88977.0,0.00464362]
[1766311769522,0.00564,88989.0,88977.0,0.00464362]
[1766311770530,0.23698,88989.0,88977.0,0.00464362]
[1766311771537,0.23134,88987.0,88977.0,0.00464362]
[1766311771735,0.0001,88986.0,88977.0,0.01124247]
[1766311771936,0.2267,88985.0,88976.0,0.00564]
[1766311772125,0.2268,88985.0,88976.0,0.00564]
[1766311773194,0.2267,88985.0,88976.0,0.00564]
[1766311773393,0.20982,88981.0,88976.0,0.00564]
[1766311773560,0.00564,88989.0,88976.0,0.00564]
[1766311773561,0.0001,88980.0,88976.0,0.00564]
[1766311773766,0.00564,88989.0,88967.0,0.01124012]
[1766311773767,0.14248,88975.0,88967.0,0.01124012]
[1766311774018,0.14248,88975.0,88968.0,0.00564]
[1766311774206,0.00564,88989.0,88956.0,1.07272]
[1766311774207,0.10876,88973.0,88956.0,1.07272]
[1766311774427,0.10876,88973.0,88959.0,0.59376113]
[1766311774559,0.10876,88973.0,88963.0,0.01124062]
[1766311774763,0.10866,88973.0,88964.0,0.0112405]
[1766311774975,0.10866,88973.0,88966.0,0.01124024]
[1766311775382,0.10866,88973.0,88965.0,0.01688037]
[1766311775584,0.00564,88980.0,88973.0,0.00055]
[1766311776099,0.00564,88980.0,88972.0,1.05687]
[1766311777630,0.0001,88986.0,88972.0,1.05687]
[1766311777847,0.00564,88985.0,88975.0,0.01123911]
[1766311778062,0.01123633,88997.0,88985.0,0.00055]
[1766311778063,0.00564,88990.0,88985.0,0.00055]
[1766311778264,0.00564,88990.0,88980.0,0.58751]
[1766311778477,0.03376798,88994.0,88979.0,0.46936]
[1766311778478,0.03376798,88994.0,88981.0,0.48284602]
[1766311778691,0.03038781,89004.0,88985.0,0.48059784]
[1766311778692,0.00564,88992.0,88985.0,0.48059784]
[1766311778907,0.00564,88992.0,88987.0,0.46936]
[1766311779117,0.00564,88997.0,88987.0,0.46936]
[1766311779325,0.00574766,88997.0,88987.0,0.46936]
[1766311779957,0.0002,88995.0,88982.0,0.00564]
[1766311780168,0.0002,88995.0,88972.0,0.01123949]
[1766311780169,0.0002,88989.0,88978.0,0.00564]
[1766311780415,0.10377,88986.0,88975.0,0.00564]
[1766311780818,0.11386601,88985.0,88975.0,0.00564]
[1766311781986,0.01123974,88984.0,88975.0,0.00564]
[1766311782382,0.10357,88982.0,88968.0,0.01123999]
[1766311782585,0.10357,88980.0,88971.0,0.01123961]
[1766311782802,0.10357,88980.0,88969.0,0.01123987]
[1766311783009,0.11386601,88979.0,88968.0,0.00564]
[1766311783227,0.11406601,88979.0,88967.0,0.01124012]
[1766311783424,0.11406601,88979.0,88966.0,0.01124024]
[1766311783599,0.11386601,88979.0,88965.0,0.00564]
[1766311783800,0.11386601,88979.0,88965.0,0.01688037]
[1766311783801,0.0002,88976.0,88965.0,0.01688037]
[1766311784026,0.10921,88975.0,88965.0,0.01124037]
[1766311784376,0.01123974,88984.0,88975.0,0.001099]
[1766311784377,0.00564,88980.0,88975.0,0.001099]
[1766311785006,0.00564,88980.0,88972.0,0.58751]
[1766311785222,0.00564,88980.0,88970.0,0.46936]
[1766311785412,0.00564,88980.0,88968.0,0.01123999]
[1766311785620,0.10921,88980.0,88969.0,0.01123987]
[1766311785989,0.10921,88980.0,88970.0,0.01123974]
[1766311786725,0.10921,88980.0,88969.0,0.01123987]
[1766311786933,0.01123999,88979.0,88969.0,0.01123987]
[1766311787367,0.01123999,88979.0,88970.0,0.01123974]
[1766311787576,0.01123999,88979.0,88969.0,0.01123987]
[1766311788238,0.01123999,88979.0,88970.0,0.01123974]
[1766311788443,0.01123999,88979.0,88969.0,0.01123987]
[1766311789706,0.01123999,88979.0,88966.0,0.58751]
[1766311789916,0.10357,88978.0,88967.0,0.01124012]
[1766311790506,0.10357,88978.0,88968.0,0.01123999]
[1766311790718,0.03377144,88977.0,88967.0,0.01124012]
[1766311790952,0.03377144,88977.0,88968.0,0.01123999]
[1766311791133,0.03377144,88977.0,88967.0,0.01124012]
[1766311791337,0.04808958,88977.0,88967.0,0.06744039]
[1766311791538,0.10357,88978.0,88969.0,0.01123987]
[1766311791746,0.1373414,88978.0,88969.0,0.01123987]
[1766311791981,0.10357,88978.0,88970.0,0.01123974]
[1766311792367,0.13734087,88978.0,88969.0,0.01123987]
[1766311792563,0.10357,88978.0,88969.0,0.01123987]
[1766311792789,0.13734087,88978.0,88968.0,0.01123999]
[1766311794980,0.01029601,88977.0,88967.0,0.01134012]
[1766311795155,0.13734087,88978.0,88968.0,0.01123999]
[1766311795517,0.13734087,88978.0,88969.0,0.01123987]
[1766311795889,0.10357,88978.0,88969.0,0.01123987]
[1766311796269,0.01134012,88977.0,88968.0,0.01123999]
[1766311799884,0.01134012,88977.0,88969.0,0.01123987]
[1766311800484,0.0001,88987.0,88970.0,0.01348769]
[1766311800686,0.0499541,88986.0,88977.0,1.05687]
[1766311800912,0.01054605,88985.0,88977.0,1.06810885]
[1766311801133,0.03940805,88986.0,88977.0,0.48059885]
[1766311801348,0.01054593,88985.0,88977.0,0.48059885]
[1766311801781,0.000549,88977.0,88974.0,0.01123923]
[1766311802116,0.10357,88982.0,88970.0,0.01123974]
[1766311802287,0.11511,88980.0,88971.0,0.01123961]
[1766311802447,0.11511,88980.0,88972.0,0.01123949]
[1766311802648,0.10357,88980.0,88972.0,0.01123949]
[1766311802855,0.10357,88980.0,88971.0,0.01123961]
[1766311803505,0.10357,88980.0,88972.0,0.01123949]
[1766311803506,0.10921,88980.0,88972.0,0.01123949]
[1766311803709,0.10921,88980.0,88971.0,0.01123961]
[1766311804268,0.10921,88980.0,88972.0,0.01123949]
[1766311804794,0.10921,88980.0,88970.0,0.01123974]
[1766311805221,0.10921,88980.0,88971.0,0.01123961]
[1766311806036,0.10921,88980.0,88967.0,0.0731803]
[1766311806204,0.09233,88975.0,88967.0,0.01134012]
[1766311806580,0.09233,88975.0,88956.0,0.01134151]
[1766311806581,0.09223,88973.0,88956.0,0.01134151]
[1766311806796,0.09213,88965.0,88953.0,0.01124189]
[1766311806999,0.06294823,88970.0,88953.0,0.01124189]
[1766311807000,0.000549,88957.0,88953.0,0.01124189]
[1766311807407,0.00564,88961.0,88953.0,0.01124189]
[1766311807871,0.00564,88961.0,88955.0,0.01124163]
[1766311808373,0.00564,88961.0,88953.0,0.01134281]
[1766311808851,0.00564,88961.0,88948.0,0.05621256]
[1766311808852,0.000549,88953.0,88948.0,0.05621256]
[1766311809094,0.00564,88956.0,88945.0,0.0112429]